Cogmind - Beta 16 --- EXPLORER MODE // 2025.11.17 @ 11:09:05 Player: K.K.Y. Result: Destroyed by Y-45 Defender with Beam Rifle Performance ------------- Evolutions (0) 0 Regions Visited (3) 600 Robots Destroyed (32) 160 Value Destroyed (848) 848 Prototype IDs (7) 140 Alien Tech Used (0) 0 Bonus (0) 0 TOTAL SCORE: 1748 Bonus ------- None Cogmind --------- Core Integrity 0/250 Matter 139/300 Energy 92/100 System Corruption 7% Temperature Cool (9) Movement Treading (253) Ox1 Location -9/Recycling Parts ------- > --- POWER (1) -------- (None) > --- PROPULSION (3) --- Light Treads Spiked Treads Spiked Treads > --- UTILITY (2) ------ Huge Storage Unit Light Armor Plating > --- WEAPON (2) ------- Battle Rifle Battle Cannon > --- INVENTORY (25) --- Humpback Machine Analyzer Scrap Shield Recalibrator Medium Laser Datajack Mining Laser SUBCON Basin (Full) Peak State ------------ > --- POWER ------------ (None) > --- PROPULSION ------- Light Treads Spiked Treads Spiked Treads > --- UTILITY ---------- Huge Storage Unit Light Armor Plating > --- WEAPON ----------- Battle Rifle Battle Cannon > --- INVENTORY -------- Humpback Machine Analyzer Scrap Shield Recalibrator Medium Laser Datajack Mining Laser SUBCON Basin [Rating: 30] Favorites ----------- Power Light Nuclear Core Power Core Light Nuclear Core Propulsion Light Treads Treads Light Treads Utility Huge Storage Unit Storage Huge Storage Unit Processor Transport Network Coupler Protection Light Armor Plating Weapon Medium Laser Energy Gun Medium Laser Ballistic Gun Battle Rifle Ballistic Cannon Battle Cannon Special Weapon Mining Laser Build | -11 -10 -10 -9 ------- Run | Yrd Mat Sub Rec Slots Evolved 1 | . 1 . . Power . | . . . . Propulsion 1 | . 1 . . Utility . | . . . . Weapon . | . . . . Parts Attached 23 | 5 6 10 2 Power 1 | . 1 . . Engine . | . . . . Core 1 | . 1 . . Reactor . | . . . . Propulsion 10 | 2 1 7 . Treads 10 | 2 1 7 . Leg . | . . . . Wheel . | . . . . Hover . | . . . . Flight . | . . . . Utility 5 | 3 2 . . Device . | . . . . Storage 3 | 1 2 . . Processor 1 | 1 . . . Hackware . | . . . . Protection 1 | 1 . . . Artifact . | . . . . Weapon 7 | . 2 3 2 Energy Gun 2 | . 2 . . Energy Cannon . | . . . . Ballistic Gun 1 | . . . 1 Ballistic Cannon 3 | . . 2 1 Launcher . | . . . . Special Weapon 1 | . . 1 . Impact Weapon . | . . . . Slashing Weapon . | . . . . Piercing Weapon . | . . . . Special Melee Weapon . | . . . . Unidentified Prototypes . | . . . . Parts Lost 7 | . . 7 . Power 1 | . . 1 . Propulsion 3 | . . 3 . Utility 1 | . . 1 . Weapon 2 | . . 2 . Highest Loss Streak 4 | . . 4 . To Critical Strikes . | . . . . Average Backups 11 | 2 5 14 7 Power . | . . . . Propulsion 3 | . 1 4 . Utility 3 | 1 2 3 4 Weapon 4 | 1 1 5 2 Tool/Special . | . . . . Unused Backups 10 | . . 4 6 Power . | . . . . Propulsion 1 | . . 1 . Utility 5 | . . 1 4 Weapon 3 | . . 2 1 Tool/Special 1 | . . . 1 Average Slot Usage (%) 86 | . 87 86 87 Core 4 | . 7 3 . Treads 34 | . 31 36 37 Storage 12 | . 12 12 12 Processor 6 | . 12 3 . Protection 4 | . . 7 12 Energy Gun 14 | . 22 9 11 Ballistic Cannon 3 | . . 6 2 Special Weapon 4 | . . 6 10 Peak Build Rating 30 | 4 11 28 30 Average Rating 11 | 3 8 12 28 On Entrance 10 | . 4 11 28 Avg Prop Armor Cover (%) . | . . . . Naked Turns . | . . . . Heaviest Build 91 | 10 88 91 88 Greatest Support 60 | 40 60 60 60 Greatest Overweight (x) 2 | . 2 2 1 Average Overweight (x) . | . . 1 1 Largest Inventory Capacity 25 | 10 25 25 25 Average Capacity 23 | 9 20 25 25 Most Carried 25 | 5 13 25 25 Average Carried 12 | 2 5 16 24 Final Capacity 25 | 10 25 25 25 Final Carried 25 | 3 13 25 24 Class Distribution -------------------- 100% | Hacker-Mutant Dominant Class ---------------- Hacker-Mutant | -10/Materials Hacker-Mutant | -10/Subcaves Hacker-Mutant | -9/Recycling Resources | -11 -10 -10 -9 ----------- Run | Yrd Mat Sub Rec Matter Collected 847 | 242 76 392 137 Remotely . | . . . . Salvage Created 921 | . 428 493 . Parts 55 | . 22 33 . Haulers Intercepted 2 | . 2 . . Recyclers Shooed 1 | . 1 . . Parts Field Recycled . | . . . . Retrieved Matter . | . . . . Parts Self-Destructed . | . . . . Prevented . | . . . . Parts Restored . | . . . . Kills | -11 -10 -10 -9 ------- Run | Yrd Mat Sub Rec Combat Hostiles Destroyed 25 | . 8 16 1 Guns 11 | . 8 3 . Cannons 13 | . . 13 . Classes Destroyed 9 | . 6 2 1 Worker 1 | . 1 . . Hauler 2 | . 2 . . Mechanic 1 | . 1 . . Turret 2 | . . 2 . Watcher 1 | . 1 . . Swarmer 8 | . 4 4 . Grunt 4 | . 4 . . Sentry 1 | . . . 1 Subdweller 12 | . . 12 . Best Kill Streak 5 | . 3 5 1 Combat Bots Only 4 | . 2 4 1 Max Kills in Single Turn 1 | . 1 1 1 Gunslinging . | . . . . Exploded . | . . . . Melee . | . . . . Uniques/NPCs Destroyed . | . . . . Combat | -11 -10 -10 -9 -------- Run | Yrd Mat Sub Rec Hostile Shots Fired 189 | . 54 118 17 Missed 44 | . 11 30 3 Hits 145 | . 43 88 14 Projectile 145 | . 43 88 14 Damage Taken 1480 | . 285 1067 128 Core 258 | . 68 162 28 Absorbed by Shields . | . . . . Ignored by Resistances 739 | . 191 470 78 Core Remaining (%) 100 | 100 . . . Volleys Fired 122 | . 45 73 4 Largest 2 | . 2 2 2 Hottest 150 | . 90 150 150 Shots Fired 189 | . 68 113 8 Gun 96 | . 68 24 4 Cannon 81 | . . 80 1 Launcher . | . . . . Special 12 | . . 9 3 Kinetic 82 | . . 80 2 Thermal 107 | . 68 33 6 Explosive . | . . . . Electromagnetic . | . . . . Robot Hit Streak 29 | . 15 29 19 Robot Miss Streak 3 | . 3 1 . Penetration Max . | . . . . Secondary Targets 1 | . 1 . . Max Gunslinging Chain 1 | . 1 . . Shots Hit Robots 127 | . 51 68 8 Core Hits 50 | . 22 26 2 Critical Kills . | . . . . Critical Parts Destroyed . | . . . . Critical Strikes 10 | . 4 5 1 Burn 6 | . 4 1 1 Blast 4 | . . 4 . Melee Attacks . | . . . . Impact . | . . . . Slashing . | . . . . Piercing . | . . . . Sneak Attacks . | . . . . Combat Hostiles . | . . . . Follow-up Attacks . | . . . . Damage Inflicted 1791 | . 632 1013 146 Guns 757 | . 614 89 54 Cannons 944 | . . 924 20 Explosions . | . . . . Melee . | . . . . Ramming 18 | . 18 . . Kinetic 960 | . . 924 36 Thermal 813 | . 614 89 110 Explosive . | . . . . Electromagnetic . | . . . . Impact . | . . . . Slashing . | . . . . Piercing . | . . . . Highest Corruption 7 | . 1 7 7 Average Corruption 4 | . 1 5 7 Corruption Purged . | . . . . Corruption Blocked . | . . . . Effects 99 | . 13 83 3 Message Errors 22 | . 1 19 2 Matter Fused 23 | . 1 22 . Heat Flow Errors 7 | . 1 6 . Energy Discharges 15 | . 1 14 . Parts Rejected 1 | . . 1 . Parts Fused 1 | . . . 1 Data Loss (minor) 16 | . 6 10 . Data Loss (major) 5 | . 1 4 . Misfires 5 | . 1 4 . Alerts 3 | . 1 2 . Weapon Failures 1 | . . 1 . Overload Shots . | . . . . Overflow Damage 29 | . . 8 21 Projectiles 29 | . . 8 21 Explosions . | . . . . Melee . | . . . . Knockbacks 9 | . . 9 . Impact . | . . . . Kinetic 9 | . . 9 . Secondary . | . . . . Self-Inflicted Damage . | . . . . Shots . | . . . . Rammed 1 | . 1 . . Targets Rammed 1 | . 1 . . Kicked . | . . . . Crushed . | . . . . Highest Temperature 361 | . 361 256 138 Average Temperature 84 | . 86 95 63 Received Heat Transfer 627 | . 201 363 63 Effects 1 | . 1 . . Interference 1 | . 1 . . Siege Activations . | . . . . Martial Activations . | . . . . Shielding Activations . | . . . . Robots Disrupted . | . . . . Combat Hostiles . | . . . . Robots Corrupted . | . . . . Combat Hostiles . | . . . . Parts Fried . | . . . . Impact Corruptions . | . . . . Robots Melted 1 | . . . 1 Combat Hostiles 1 | . . . 1 Parts Melted 5 | . 3 2 . Heat Transferred 2647 | . 1979 333 335 Parts Sabotaged . | . . . . Parts Stolen . | . . . . Parts Stripped . | . . . . Power Chain Reactions . | . . . . Alert | -11 -10 -10 -9 ------- Run | Yrd Mat Sub Rec Maximum Alert Level . | . . . . Low Security (%) 100 | 100 100 . 100 Level 1 . | . . . . Level 2 . | . . . . Level 3 . | . . . . Level 4 . | . . . . Level 5 . | . . . . High Security . | . . . . Max Security . | . . . . Peak Influence 50 | . 50 . 20 Initial . | . . . . Average 2 | . 2 . 1 Influence Increases 444 | . 244 180 20 Destroy 0b10 Robot/C 300 | . 160 120 20 Destroy 0b10 Robot/NC 25 | . 25 . . Destroy Leader 36 | . 36 . . Successful Hack 8 | . 8 . . Lose Combat Pursuer 75 | . 15 60 . Influence Decreases 444 | . 244 180 20 Time Decay 404 | . 244 140 20 Lost Part 40 | . . 40 . Squads Dispatched . | . . . . Investigation . | . . . . Extermination . | . . . . Reinforcement . | . . . . Assault . | . . . . Garrison . | . . . . Intercept . | . . . . Searches Triggered . | . . . . Construction Impeded . | . . . . Haulers Reinforced . | . . . . Active Scanning Responses . | . . . . Cargo Convoy Interrupts . | . . . . Stealth | -11 -10 -10 -9 --------- Run | Yrd Mat Sub Rec Distress Signals 1 | . 1 . . Communications Jammed . | . . . . Distress Signals . | . . . . Times Spotted 39 | . 18 19 2 Peak Tracking Total 6 | . 4 6 1 Tactical Retreats 4 | . 1 3 . Traps | -11 -10 -10 -9 ------- Run | Yrd Mat Sub Rec Traps Triggered 2 | . . 2 . Indirectly . | . . . . Trap Hack Attempts . | . . . . Triggered . | . . . . Disarmed 1 | . 1 . . Reprogrammed . | . . . . Reused . | . . . . Traps Extracted . | . . . . Installed . | . . . . Triggered . | . . . . Machines | -11 -10 -10 -9 ---------- Run | Yrd Mat Sub Rec Machines Disabled 2 | . . 2 . Max in Single Turn 1 | . . 1 . Machines Repaired . | . . . . Machines Dismantled . | . . . . Machines Sabotaged . | . . . . Overloaded Fab Kills . | . . . . Hacking | -11 -10 -10 -9 --------- Run | Yrd Mat Sub Rec Machines Accessed 11 | . 6 3 2 Terminals 8 | . 6 . 2 Fabricators . | . . . . Repair Stations . | . . . . Recycling Units . | . . . . Scanalyzers . | . . . . Garrison Access . | . . . . Total Hacks 34 | . 19 7 8 Successful 24 | . 11 7 6 Failed 10 | . 8 . 2 Catastrophic 2 | . 2 . . Database Lockouts . | . . . . Manual . | . . . . Terminals 27 | . 19 . 8 Fabricators . | . . . . Repair Stations . | . . . . Recycling Units . | . . . . Scanalyzers . | . . . . Garrison Access . | . . . . Terminal Hacks 24 | . 11 7 6 Record 5 | . . 5 . Part Schematic 2 | . . . 2 Robot Analysis 1 | . . . 1 Prototype ID Bank 5 | . 4 . 1 Open Door 1 | . . 1 . Emergency Access Points 1 | . 1 . . Scanalyzer Index 1 | . 1 . . Disarm Traps 2 | . 2 . . Dispatch Records 1 | . 1 . . Hauler Manifests 2 | . 1 . 1 Zone Layout 2 | . 1 . 1 Release Object 1 | . . 1 . Fabricator Hacks . | . . . . Repair Station Hacks . | . . . . Recycling Unit Hacks . | . . . . Scanalyzer . | . . . . Garrison Access Hacks . | . . . . Unauthorized Hacks . | . . . . Terminals . | . . . . Fabricators . | . . . . Repair Stations . | . . . . Recycling Units . | . . . . Scanalyzers . | . . . . Garrison Access . | . . . . Data Cores Recovered . | . . . . Used . | . . . . Hacking Detections 4 | . 3 . 1 Full Trace Events 2 | . 2 . . Feedback Events 1 | . 1 . . Corruption 1 | . 1 . . Feedback Blocked . | . . . . Robot Schematics Acquired . | . . . . Robots Built . | . . . . Authchips . | . . . . Time . | . . . . Total Robot Build Rating . | . . . . Part Schematics Acquired 2 | . . . 2 Parts Built . | . . . . Authchips . | . . . . Time . | . . . . Total Part Build Rating . | . . . . Part Studies Acquired . | . . . . Parts Repaired . | . . . . Time . | . . . . Parts Recycled . | . . . . Recycled Matter . | . . . . Retrieved Matter . | . . . . Retrieved Components . | . . . . Parts Scanalyzed . | . . . . Part Schematics Acquired . | . . . . Parts Damaged . | . . . . Bothacking | -11 -10 -10 -9 ------------ Run | Yrd Mat Sub Rec Used RIF Installer . | . . . . Robots Hacked . | . . . . Non-combat . | . . . . Combat . | . . . . Robot Hacks Applied . | . . . . Relay Couplers Released . | . . . . Fabnet Peak Effective % . | . . . . Robots Rewired . | . . . . Allies Hacked . | . . . . Hacks Repelled . | . . . . Allies | -11 -10 -10 -9 -------- Run | Yrd Mat Sub Rec Total Allies . | . . . . Largest Group . | . . . . Highest-Rated Group . | . . . . Highest-Rated Ally . | . . . . Total Orders . | . . . . Ally Attacks . | . . . . Total Damage . | . . . . Kills . | . . . . Allies Corrupted . | . . . . Allies Melted . | . . . . Intel | -11 -10 -10 -9 ------- Run | Yrd Mat Sub Rec Active Infowar (turns) 2838 | 52 1871 915 . T.N.C. 2838 | 52 1871 915 . Robot Analysis Total 1 | . . . 1 Derelict Logs Recovered 2 | . . 2 . Drone Launches . | . . . . Drone Recoveries . | . . . . Exploration | -11 -10 -10 -9 ------------- Run | Yrd Mat Sub Rec Turns Passed 5423 | 63 1871 3382 107 Spaces Moved 1960 | 37 731 1158 34 Core 7 | 7 . . . Treads 1953 | 30 731 1158 34 Legs . | . . . . Wheels . | . . . . Hover . | . . . . Flight . | . . . . Fastest Speed 50 | 50 160 240 253 Average Speed 233 | 139 214 248 253 Slowest Speed 340 | 160 320 340 253 Overloaded Moves . | . . . . Propulsion Burnouts . | . . . . Robots Hopped . | . . . . Potential Cave-ins . | . . . . Cave-ins Triggered 1 | . . 1 . Exploration Rate (%) 46 | 3 94 79 9 Regions Visited 3 Branch Regions 2 Pre-discovered Areas 1 | . . 1 . Known Exits Taken 3 | 1 1 1 . Unknown Exits Taken . | . . . . Scrap Searched 7 | . . 7 . Spaces Dug . | . . . . Terrain Destroyed 2 | . . 2 . Melee . | . . . . Projectile 2 | . . 2 . AOE . | . . . . Terrain Rammed . | . . . . Walls Destroyed . | . . . . Machines Disabled . | . . . . Actions | -11 -10 -10 -9 --------- Run | Yrd Mat Sub Rec Total 2595 | 49 967 1538 41 Wait 439 | . 167 272 . Move 1957 | 36 730 1157 34 Hop . | . . . . Pick Up 35 | 7 16 12 . Fast Attach . | . . . . Attach 19 | 5 4 9 1 Detach 3 | 1 . 2 . Swap 7 | . 2 4 1 Drop 12 | . 2 9 1 Fire 122 | . 45 73 4 Melee . | . . . . Ram . | . . . . Kick . | . . . . Crush 1 | . 1 . . Escape Stasis . | . . . . Rewire . | . . . . Trap . | . . . . Miscellaneous . | . . . . Route ------- -11/Scrapyard -10/Materials (discovered 6 exits: *Mat x3 / *Min x2 / *Sub) -10/Subcaves (discovered 4 exits: *Mat / *Rec / [*Scr x2]) -9/Recycling History --------- Turn | Location | Event 21 | -11/Scrapyard | Identified exit to Materials 21 | -11/Scrapyard | Discovered exit to Materials (range 16) 64 | -11/Scrapyard | Entered Materials 64 | -10/Materials | Evolved 1 slot: Propulsion x1 65 | -10/Materials | Met a group of wandering Federalists 316 | -10/Materials | Build established: Hacker-Mutant 460 | -10/Materials | Identified exit to Mines 460 | -10/Materials | Discovered exit to Mines (range 15) 609 | -10/Materials | Identified exit to Materials 609 | -10/Materials | Discovered exit to Materials (range 12) 1068 | -10/Materials | Discovered exit to Materials (range 12) 1466 | -10/Materials | Discovered exit to Mines (range 13) 1743 | -10/Materials | Discovered exit to Materials (range 11) 1911 | -10/Materials | Identified exit to Subcaves 1911 | -10/Materials | Discovered exit to Subcaves (range 11) 1935 | -10/Materials | Entered Subcaves 1936 | -10/Subcaves | Continued accompanying wandering Federalists (6) 1936 | -10/Subcaves | Approached by a straggling Scientist 2046 | -10/Subcaves | Scientist uncovered a shortcut to Scraptown 2492 | -10/Subcaves | Disturbed a concealed Subdweller 2696 | -10/Subcaves | Learned Materials emergency access door positions 2821 | -10/Subcaves | Core integrity fell below 50% 2833 | -10/Subcaves | Identified exit to Recycling 2833 | -10/Subcaves | Discovered exit to Recycling (range 11) 2850 | -10/Subcaves | Crushed by falling debris 2881 | -10/Subcaves | Lost 4 parts (1p1n1u1w) 2883 | -10/Subcaves | Identified exit to Materials 2883 | -10/Subcaves | Discovered exit to Materials (range 9) 2895 | -10/Subcaves | Visited Clippyterm 2902 | -10/Subcaves | Learned location of Section 7 (-2) 2941 | -10/Subcaves | Shifting Twisted Machinery released Sub. Power Source 2952 | -10/Subcaves | Shifting Twisted Machinery released Scrap Shield 3235 | -10/Subcaves | Learned Materials emergency access door positions 3307 | -10/Subcaves | Core integrity fell below 20% 3632 | -10/Subcaves | Shifting Twisted Machinery released Scrap Shield 3635 | -10/Subcaves | Shifting Twisted Machinery released Sub. Laser 5152 | -10/Subcaves | Found SUBCON Basin 5317 | -10/Subcaves | Entered Recycling 5424 | -9/Recycling | Destroyed by Y-45 Defender with Beam Rifle Last Messages --------------- W-25 Informer Tier: 3 An upgrade to the W-16 Scout, Informers improve on the Scout's jamming range. As unarmed surveillance units rather than frontline combatants, agility is preferred over additional armor to protect their systems from electromagnetic damage. >>Manifests Retrieving manifest data... Found 2 haulers: A-02 Transporter (Empty) A-02 Transporter (Empty) 05374_ System corrupted: Med. Laser fused. 05410_ Discarded Med. Laser. 05412_ Y-45 Defender springs to life. 05415_ &YPSYRHRXQZH98YJ